{"text_format":"1","workbook":"xlsx","n_sheets":2,"sheets":["scan","Blad2"],"not_rendered":{"charts":0,"images":0,"macros":1,"external_links":0,"defined_names":1,"comments":0,"pivot_tables":0},"unopened":[],"bounds":{"document_bytes":16777216,"sheet_cells":100000,"rows_first":2000,"rows_last":500,"rows_between":2000,"halvings":0,"cell_chars":16384,"cell_head_chars":4096},"cells_cut":0,"cells_raw":0,"read":"whole","date_system":"1900"}

{"sheet":"scan","index":0,"n_rows":49,"n_cols":19,"rows_kept":49,"cut":false,"hidden":false,"merged":[[5,1,5,2],[4,1,4,8],[1,1,1,8],[2,1,2,8]]}
[]
[null,"Complexiteit van de opdracht ",null,null,null,null,null,null,null,null,null,null,1]
[null,null,null,null,null,null,null,null,null,null,null,null,1]
[null,null,null,null,null,null,null,null,{"$f":"IF(S9>0,SUMPRODUCT(O8:R8,O9:R9)/S9,\"...\")","v":2.9},null,null,null,1]
[null,null,null,null,null,null,null,null,null,null,null,null,1]
[null,"historische kennis",null,"omschrijving",1,2,3,4,"omschrijving",null,null,null,1]
[null,null,null,"de opdracht doet slechts een beroep op beperkte (voor)kennis.",null,null,null,null,"de opdracht doet een beroep op uitgebreide (voor)kennis.",null,null,null,{"$f":"IF(OR(E7=\"x\",F7=\"x\",G7=\"x\",H7=\"x\"),1,0)","v":0},null,"selectie"]
[null,null,null,"de leerling hoeft niet zelf informatie te zoeken",null,"x",null,null,"de leerling moet zelf op zoek naar bruikbare en betrouwbare informatie.",null,null,null,1,null,1,2,3,4,"totaal"]
[null,null,null,null,null,null,null,null,null,null,null,null,1,null,{"$f":"COUNTIF(E7:E49,\"x\")","v":0},{"$f":"COUNTIF(F7:F49,\"x\")","v":4},3,3,{"$f":"SUM(O9:R9)","v":10}]
[null,"opdracht",null,"omschrijving",1,2,3,4,"omschrijving",null,null,null,1]
[null,null,null,"gesloten vraag",null,null,null,null,"open vraag",null,null,null,0]
[null,null,null,"eenvoudige vraagstelling",null,null,null,null,"complexe vraagstelling",null,null,null,0]
[null,null,null,"eenvoudig taalgebruik in de opdracht",null,null,null,null,"moeilijk taalgebruik in de opdracht",null,null,null,0]
[null,null,null,"concreet onderwerp",null,"x",null,null,"abstract onderwerp",null,null,null,1]
[null,null,null,"informatie aan de bron(nen) ontlenen ",null,null,"x",null,"(informatie in) bronnen met elkaar vergelijken.",null,null,null,1]
[null,null,null,"veel aanwijzingen",null,null,null,null,"geen aanwijzingen",null,null,null,0]
[null,null,null,"kort antwoord ",null,null,null,null,"lang antwoord ",null,null,null,0]
[null,null,null,"antwoord zonder toelichting",null,null,null,"x","antwoord met toelichting/verklaring",null,null,null,1]
[null,null,null,null,null,null,null,null,null,null,null,null,1]
[null,"bronnen",null,"omschrijving",1,2,3,4,"omschrijving",null,null,null,1]
[null,null,null,"één bron",null,null,null,null,"meerdere bronnen",null,null,null,0]
[null,null,null,"korte bron",null,null,null,"x","lange bron",null,null,null,1]
[null,null,null,"eenvoudige structuur van de bron",null,null,"x",null,"complexe structuur van de bron",null,null,null,1]
[null,null,null,"weinig moeilijke (niet frequent gebruikte of archaïsche) woorden",null,"x",null,null,"veel moeilijke (niet frequent gebruikte of archaïsche)woorden",null,null,null,1]
[null,null,null,"eenvoudige syntaxis",null,null,null,null,"complexe syntaxis",null,null,null,0]
[null,null,null,"weinig informatie per bron",null,null,null,null,"veel informatie per bron",null,null,null,0]
[null,null,null,"eenvoudige informatie",null,null,null,null,"complexe informatie",null,null,null,0]
[null,null,null,null,null,null,null,null,null,null,null,null,1]
[null,"vaardigheid","subvaardigheid","omschrijving",1,2,3,4,"omschrijving",null,null,null,1]
[null,"A. Tijd","Oorzaak en gevolg","in het kader van een historische vraagstelling een eenvoudige verklaring geven voor een historische gebeurtenis, verschijnsel of ontwikkeling.",null,null,null,null,"in het kader van een historische vraagstelling een uitgebreide en meervoudige verklaring geven voor een historische gebeurtenis, verschijnsel of ontwikkeling.",null,null,null,{"$f":"IF(OR(E30=\"x\",F30=\"x\",G30=\"x\",H30=\"x\"),1,0)","v":0}]
[null,null,null,"een monocausale verklaring geven.",null,null,null,null,"een multicausale verklaring geven. ",null,null,null,0]
[null,null,null,"geen onderscheid maken tussen aanleiding en oorzaak.",null,null,null,null,"onderscheid maken tussen aanleiding en oorzaken.",null,null,null,0]
[null,null,null,"geen onderscheid maken tussen het gewicht van oorzaken.",null,null,null,null,"het gewicht van oorzaken wegen.",null,null,null,0]
[null,null,null,"geen onderscheid maken tussen bedoelde en onbedoelde gevolgen.",null,null,null,null,"onderscheid maken tussen bedoelde en onbedoelde gevolgen.",null,null,null,0]
[null,null,null,"geen onderscheid maken tussen gevolgen van meer en minder belang. ",null,null,null,null,"onderscheid maken tussen gevolgen van meer en minder belang, bijvoorbeeld op grond van schaal, intensiteit, duur.",null,null,null,0]
[null,null,null,"geen onderscheid maken tussen politiek-bestuurlijke, sociaaleconomische en cultureel- mentale (waaronder godsdienstige) oorzaken en/of gevolgen.",null,null,null,null,"onderscheid maken tussen politiek-bestuurlijke, sociaaleconomische en cultureel- mentale (waaronder godsdienstige) oorzaken en/of gevolgen.",null,null,null,0]
[null,null,null,"houdt geen rekening met het gegeven dat elke ordening van causaliteit een interpretatie is.",null,null,null,null,"houdt rekening met het gegeven dat elke ordening van causaliteit een interpretatie is.",null,null,null,0]
[null,null,"Continuïteit en verandering","maakt geen vergelijking tussen situaties uit verschillende tijdvakken.",null,null,null,null,"maakt een vergelijking tussen situaties uit verschillende tijdvakken.",null,null,null,0]
[null,null,null,"maakt geen onderscheid tussen wat veranderd is en wat hetzelfde is gebleven.",null,null,null,null,"onderscheidt wat veranderd is en wat hetzelfde is gebleven. ",null,null,null,0]
[null,null,null,"maakt geen onderscheid tussen verschillende soorten historische verandering. ",null,null,null,null,"onderscheidt verschillende soorten historische verandering; bijvoorbeeld in tempo (tamelijk snel en plotseling of langzaam en geleidelijk), duur, schaal, intensiteit, omvang etc.",null,null,null,0]
[null,null,null,"maakt geen onderscheid tussen politiek-bestuurlijk, sociaal-economische en/of cultureel/mentale veranderingen.",null,null,null,null,"maakt onderscheid tussen verschillende soorten historische verandering; bijvoorbeeld op politiek-bestuurlijk, sociaaleconomisch en cultureel/mentaal terrein.",null,null,null,0]
[null,null,null,"houdt geen rekening met het gegeven dat dat elke ordening van continuïteit en verandering een interpretatie is",null,null,null,null,"houdt rekening met het gegeven dat elke ordening van continuïteit en verandering een interpretatie is.",null,null,null,0]
[null,"B Interpretatie","Standplaats-gebondenheid","verklaart menselijk gedrag (denken en doen) in het verleden niet vanuit de toen en daar bekende en geaccepteerde kennis en waarden. ",null,null,null,null,"verklaart menselijk gedrag (denken en doen) in het verleden vanuit de toen en daar bekende en geaccepteerde kennis en waarden. ",null,null,null,0]
[null,null,null,"houdt geen rekening met factoren die de standplaatsgebondenheid van mensen of een groep bepalen.",null,null,null,null,"houdt rekening met verschillende factoren die de standplaatsgebondenheid van mensen of een groep bepalen. (Bijvoorbeeld: waardesystemen, politieke, sociaaleconomische en culturele oriëntatie, kennis, gender, karakter, toevallige factoren).",null,null,null,0]
[null,null,"Bron en vraagstelling","werkt vanuit gegeven vraagstelling of hypothese",null,null,null,"x","werkt vanuit zelf gekozen vraagstelling of hypothese. ",null,null,null,1]
[null,null,null,"gaat in op de betrouwbaarheid van een bron op basis van aangereikte criteria ",null,"x",null,null,"gebruikt zelfstandig verschillende criteria voor het beoordelen van de betrouwbaarheid van een bron. ",null,null,null,1]
[null,null,null,"gaat niet in op de bruikbaarheid van informatie uit de bron(nen) voor de vraagstelling.",null,null,null,null,"weegt de bruikbaarheid van informatie uit de bron(nen) voor de vraagstelling.",null,null,null,0]
[null,null,null,"houdt geen rekening met de representativiteit van de bron.",null,null,"x",null,"gaat, zonder aanwijzing, in op de representativiteit van de bron. ",null,null,null,1]
[null,null,null,"maakt geen onderscheid tussen feit en mening.",null,null,null,null,"maakt onderscheid tussen feit en mening.",null,null,null,0]

{"sheet":"Blad2","index":1,"n_rows":18,"n_cols":4,"rows_kept":18,"cut":false,"hidden":false,"merged":[]}
[]
[]
[]
[]
[]
[]
[]
[]
[]
[]
[]
[]
[]
[]
[]
[]
[]
[null,null,null,"opbouw en structuur van zinsdelen"]